bitfinex-derivatives/quotes_SOLF0:USTF0_20251222
["timestamp","ask_amount","ask_price","bid_price","bid_amount"]
[1766430274398,3.76806133,126.28,126.22,19.35]
[1766430274696,0.05494109,126.26,126.24,0.05646112]
[1766430275196,0.00494109,126.26,126.24,19.40646112]
[1766430275690,3.76806133,126.31,126.24,19.40646112]
[1766430276592,0.05795754,126.29,126.24,19.40646112]
[1766430276800,7.1282,126.31,126.24,19.40646112]
[1766430277897,0.05278958,126.29,126.24,19.40646112]
[1766430278495,3.82085091,126.29,126.24,19.40646112]
[1766430278686,3.82085091,126.29,126.24,0.05646112]
[1766430279292,10.89856133,126.27,126.21,20.48]
[1766430279595,3.76806133,126.25,126.19,20.48]
[1766430279797,7.1335,126.22,126.13,7.138]
[1766430280000,7.1335,126.22,126.13,93.58]
[1766430280202,3.76806133,126.23,126.13,93.58]
[1766430280403,0.00281755,126.19,126.17,0.05234688]
[1766430281897,0.00281755,126.19,126.17,20.53234688]
[1766430287121,0.00281755,126.19,126.12,20.48]
[1766430288225,0.00281755,126.19,126.14,0.05037425]
[1766430288922,3.76806133,126.17,126.09,20.48]
[1766430289118,10.90436133,126.17,126.09,20.48]
[1766430289313,3.76806133,126.17,126.09,20.48]
[1766430289714,204.6013,126.18,126.09,20.48]
[1766430289922,0.05569814,126.15,126.12,0.05270043]
[1766430291315,111.0324,126.14,126.05,20.48]
[1766430291519,112.66409814,126.15,126.05,20.48]
[1766430291520,97.36806133,126.13,126.05,20.48]
[1766430291722,7.1384,126.13,126.05,20.48]
[1766430291921,2.41466458,126.15,126.05,22.89466458]
[1766430292229,2.41466458,126.15,126.09,0.0579668]
[1766430292428,2.41466458,126.15,126.09,20.5379668]
[1766430292626,7.1368,126.16,126.09,20.5379668]
[1766430292931,2.41466458,126.16,126.09,20.5379668]
[1766430294026,2.41466458,126.18,126.1,20.48]
[1766430294342,9.54926458,126.2,126.1,22.89466458]
[1766430294526,9.54926458,126.2,126.14,20.48]
[1766430295133,2.41466458,126.18,126.14,20.48]
[1766430295432,0.05610228,126.17,126.15,0.05771963]
[1766430295633,0.05610228,126.17,126.07,20.48]
[1766430295838,111.0049,126.18,126.07,20.48]
[1766430296030,2.41466458,126.14,126.07,20.48]
[1766430296332,2.41466458,126.15,126.08,20.48]
[1766430296535,0.05536328,126.13,126.1,20.53171478]
[1766430296739,2.41466458,126.15,126.1,20.53171478]
[1766430296925,2.41466458,126.13,126.1,0.05171478]
[1766430297435,9.55336458,126.13,126.06,20.48]
[1766430297936,7.1387,126.13,126.06,20.48]
[1766430298336,6.47104324,126.15,126.08,20.53393406]
[1766430299243,0.05518135,126.13,126.08,20.53393406]
[1766430299540,6.47104324,126.12,126.02,20.48]
[1766430299737,211.16394324,126.12,126.02,20.48]
[1766430300039,100.11104324,126.12,126.02,20.48]
[1766430300434,6.47104324,126.03,125.95,20.48]
[1766430300636,0.00023912,126.0,125.98,20.53194956]
[1766430300832,6.47104324,126.07,125.98,20.48]
[1766430301134,111.103,126.06,125.98,20.48]
[1766430301432,117.59384324,126.04,125.95,20.48]
[1766430301631,0.05778556,126.01,125.98,0.05140582]
[1766430302026,0.05778556,126.01,125.95,20.48]
[1766430302224,0.05778556,126.01,125.9,20.48005363]
[1766430302431,117.62784324,126.0,125.9,20.48005363]
[1766430302632,117.65784324,125.97,125.9,5.363e-05]
[1766430302832,100.8083,125.96,125.9,5.363e-05]
[1766430303040,6.52828636,125.94,125.92,0.06113802]
[1766430303241,117.73868636,125.94,125.84,20.48]
[1766430303443,6.47104324,125.94,125.84,20.48]
[1766430303640,117.68074324,125.94,125.84,20.48]
[1766430303841,6.47104324,125.91,125.84,20.48]
[1766430304037,6.47104324,125.88,125.78,20.48]
[1766430304243,0.05100595,125.84,125.82,0.05889795]
[1766430304439,6.47104324,125.89,125.82,20.48]
[1766430304644,6.47104324,125.89,125.8,111.3263]
[1766430304645,93.66,125.9,125.8,20.48]
[1766430304847,93.66,125.9,125.82,20.48]
[1766430305147,6.47104324,125.92,125.82,20.48]
[1766430305344,0.0573986,125.88,125.86,0.05737081]
[1766430305737,6.47104324,125.92,125.86,0.05737081]
[1766430306742,0.06020391,125.9,125.86,19.25737081]
[1766430306949,0.06020391,125.9,125.87,0.05633035]
[1766430307245,6.47104324,125.95,125.87,0.05633035]
[1766430307548,6.47104324,125.95,125.87,19.2]
[1766430307750,93.7,125.98,125.88,19.2]
[1766430307947,6.47104324,125.99,125.91,19.2]
[1766430308146,100.19104324,126.02,125.92,19.2583997]
[1766430308347,100.19104324,126.02,125.92,19.2]
[1766430308936,100.19104324,126.02,125.87,93.72]
[1766430308937,117.64114324,125.99,125.84,111.2889]
[1766430309139,117.64114324,125.99,125.9,0.05660421]
[1766430309140,6.5288348,125.93,125.9,0.05660421]
[1766430309441,111.229,125.92,125.82,19.2]
[1766430309643,6.47104324,125.9,125.82,19.2]
[1766430310444,0.05128064,125.87,125.85,0.05400875]
[1766430311040,0.05128064,125.87,125.79,19.2]
[1766430311242,6.47104324,125.87,125.76,19.2]
[1766430311435,124.89844324,125.87,125.76,19.2]
[1766430311642,218.65844324,125.87,125.76,19.2]
[1766430312146,0.05261839,125.83,125.76,19.2]
[1766430313042,111.35841839,125.83,125.78,0.0594639]
[1766430313237,0.05777097,125.82,125.78,0.0594639]
[1766430315255,107.40414324,125.87,125.78,19.2594639]
[1766430315545,111.256,125.89,125.78,19.2]
[1766430315751,111.256,125.89,125.79,19.2]
[1766430315954,111.2712,125.87,125.79,19.2]
[1766430316150,0.05522461,125.84,125.82,0.05114656]
[1766430317552,7.1526,125.88,125.82,0.05114656]
[1766430317750,13.62244324,125.9,125.82,0.05114656]
[1766430317948,13.62244324,125.9,125.79,19.2]
[1766430317949,124.86724324,125.9,125.79,19.2]
[1766430318256,212.1917,125.91,125.79,19.2]
[1766430318460,212.1917,125.91,125.81,19.2]
[1766430318645,0.05111015,125.87,125.85,0.05343347]
[1766430319044,111.32191015,125.87,125.77,19.2]
[1766430319249,111.2651,125.88,125.77,19.2]
[1766430319250,111.2651,125.88,125.78,19.2]
[1766430319445,7.1535,125.87,125.78,19.2]
[1766430320053,0.0541558,125.84,125.81,0.05437344]
[1766430320954,0.0041558,125.84,125.81,0.05437344]
[1766430321159,205.0404,125.91,125.81,19.25437344]
[1766430321361,205.0404,125.91,125.81,19.2]
[1766430322250,205.0404,125.91,125.85,0.05957569]
[1766430322251,0.05903865,125.87,125.85,0.05957569]
[1766430322453,0.05903865,125.87,125.81,19.2]
[1766430322651,0.05903865,125.87,125.78,19.2]
[1766430322857,111.2798,125.86,125.78,19.2]
[1766430323457,0.05981203,125.83,125.81,0.05552697]
[1766430324562,6.47104324,125.89,125.81,19.25552697]
[1766430324852,7.1522,125.89,125.81,19.2]
[1766430325647,0.05305889,125.86,125.84,0.05980143]
[1766430325846,0.0543331,125.86,125.84,0.05980143]
[1766430326763,7.1516,125.9,125.84,0.05980143]
[1766430327158,93.8,125.91,125.84,0.05980143]
[1766430327664,13.62154324,125.92,125.84,19.25980143]
[1766430327859,211.51524324,125.95,125.87,0.05458164]
[1766430328066,211.51524324,125.95,125.84,19.2]
[1766430328268,7.1494,125.94,125.84,19.2]
[1766430328758,117.65224324,125.98,125.85,19.2]
[1766430328960,13.61804324,125.98,125.89,19.2]
[1766430329769,93.84,125.99,125.89,19.2]
[1766430329969,7.1459,126.0,125.93,0.05714858]
[1766430330970,0.05813216,125.98,125.93,0.05714858]
[1766430331170,117.7051754,125.98,125.89,93.84]
[1766430331363,111.1915,125.96,125.88,20.34]
[1766430331768,7.1493,125.94,125.88,20.34]
[1766430332175,6.47104324,125.95,125.88,20.34]
[1766430332374,6.47104324,125.95,125.9,0.05130251]
[1766430332575,7.1482,125.96,125.9,0.05130251]
[1766430333061,7.1489,125.95,125.9,0.05130251]
[1766430333464,0.05144486,125.94,125.9,0.05130251]
[1766430333683,7.1499,125.93,125.9,0.05130251]
[1766430333873,0.05144486,125.94,125.9,0.05130251]
[1766430334377,6.47104324,125.93,125.84,20.34]
[1766430335166,13.62104324,125.93,125.84,20.34]
[1766430335366,0.05462542,125.9,125.87,0.05513191]
[1766430336272,6.47104324,125.89,125.81,20.16]
[1766430336663,6.47104324,125.91,125.81,20.16]
[1766430336865,6.47104324,125.92,125.81,20.16]
[1766430337271,0.05651184,125.88,125.85,0.05624608]
[1766430337776,6.47104324,125.92,125.85,0.05624608]
[1766430338069,6.47104324,125.92,125.85,20.21624608]
[1766430338568,93.82,125.94,125.85,20.21624608]
[1766430338776,0.05815788,125.9,125.88,0.0554782]
[1766430339478,100.9692,125.94,125.88,0.0554782]
[1766430340468,0.06045842,125.92,125.88,0.0554782]
[1766430343381,6.15094586,125.91,125.88,0.0554782]
[1766430343575,0.06045842,125.92,125.88,20.2154782]
[1766430344179,6.14601826,125.91,125.88,20.2154782]
[1766430344384,0.06045842,125.92,125.88,0.0554782]
[1766430344588,6.13692216,125.91,125.88,0.0554782]
[1766430344880,6.13692216,125.9,125.88,0.0554782]
[1766430345180,0.06045842,125.92,125.88,20.2154782]
[1766430346285,0.00045842,125.92,125.88,20.2154782]
[1766430346583,0.00045842,125.92,125.88,27.3678782]
[1766430346782,0.00045842,125.92,125.89,20.16]
[1766430347176,13.61824324,125.98,125.89,27.3118]
[1766430347786,6.47104324,125.98,125.91,20.16]
[1766430348178,0.059369,125.96,125.93,0.05819532]
[1766430349984,93.82,125.99,125.93,0.05819532]
[1766430350288,13.61664324,126.01,125.93,0.05819532]
[1766430350492,13.61664324,126.01,125.91,20.16]
[1766430351089,7.1458,126.0,125.95,0.05546168]
[1766430351988,7.145,126.02,125.95,0.05546168]
[1766430352189,7.145,126.02,125.97,0.00048062]
[1766430352389,7.1452,126.01,125.97,0.00048062]
[1766430352586,111.1668,125.99,125.87,20.16]
[1766430353487,121.6942836,126.0,125.86,205.0962]
[1766430353488,0.05653843,125.94,125.92,0.0525939]
[1766430353784,111.1394,126.02,125.92,0.05592609]
[1766430354084,10.5383836,126.01,125.89,20.16]
[1766430354589,10.5383836,126.01,125.92,20.16]
[1766430354788,111.1668,125.99,125.95,0.00192321]
[1766430354977,10.5383836,125.98,125.89,20.16]
[1766430355779,0.05018541,125.95,125.92,0.05680386]
[1766430359004,0.05018541,125.95,125.92,0.05680386]
[1766430360691,121.79146901,125.95,125.84,27.3146]
[1766430360890,111.1844,125.97,125.8,111.3241]
[1766430360891,10.5383836,125.92,125.8,131.4843]
[1766430361097,93.8,125.96,125.84,20.16]
[1766430361503,93.8,125.96,125.84,27.3143]
[1766430361504,7.1493,125.94,125.84,27.3143]
[1766430361691,0.05209875,125.9,125.88,0.05928737]
[1766430362601,0.05209875,125.9,125.82,113.96]
[1766430362801,10.5383836,125.94,125.83,20.16]
[1766430363598,0.05544698,125.9,125.87,0.05388011]
[1766430369100,7.1499,125.93,125.87,0.05388011]
[1766430369892,10.5383836,125.93,125.87,0.05388011]
[1766430370105,0.05035186,125.91,125.87,0.05388011]
[1766430373609,7.20115186,125.91,125.87,0.05388011]
[1766430374704,0.00035186,125.91,125.87,20.15388011]
[1766430375105,0.00035186,125.91,125.87,0.05388011]
[1766430380615,0.00035186,125.91,125.87,20.15388011]
[1766430381614,0.00035186,125.91,125.87,27.30688011]
[1766430383816,0.00035186,125.91,125.88,20.1]
[1766430384415,0.00035186,125.91,125.88,27.2524]
[1766430384808,0.00035186,125.91,125.88,20.1]
[1766430386318,0.00035186,125.91,125.87,0.05388011]
[1766430387727,0.00035186,125.91,125.87,20.15388011]
[1766430387925,3.7866692,125.91,125.87,0.05388011]
[1766430388416,7.152,125.89,125.82,20.1]
[1766430389214,3.78631734,125.91,125.83,20.1]
[1766430389420,0.05103554,125.88,125.86,0.05187019]
[1766430390428,7.1531,125.87,125.83,20.1]
[1766430390618,7.1531,125.87,125.8,19.85]
[1766430391124,7.1531,125.87,125.81,19.85]
[1766430391323,0.05632705,125.85,125.83,0.05387233]
[1766430393329,0.05632705,125.85,125.76,19.85]
[1766430393631,7.1552,125.84,125.76,19.85]
[1766430394020,111.2959,125.85,125.76,19.85]
[1766430394318,0.05082554,125.82,125.79,0.05143698]
[1766430394733,0.05082554,125.82,125.79,0.00143698]
[1766430395224,7.1565,125.81,125.79,0.00143698]
[1766430395717,0.05082554,125.82,125.79,0.00143698]
[1766430397027,7.1566,125.81,125.79,0.00143698]
[1766430397227,0.05082554,125.82,125.79,0.00143698]
[1766430398129,7.20682554,125.82,125.79,0.00143698]
[1766430399122,0.05082554,125.82,125.79,0.00143698]
[1766430399319,0.00082554,125.82,125.79,21.53143698]
[1766430399828,101.0127,125.88,125.79,21.53143698]
[1766430400028,111.2733,125.87,125.79,21.53]
[1766430400425,111.2717,125.87,125.79,21.53]
[1766430400632,111.2792,125.86,125.76,21.53]
[1766430400931,0.0601487,125.82,125.76,21.53]
[1766430401938,0.0601487,125.82,125.78,0.05149765]
[1766430402326,7.2161487,125.82,125.78,0.05149765]
[1766430402739,0.0601487,125.82,125.78,0.05149765]
[1766430406528,0.0601487,125.82,125.78,21.58149765]
[1766430406733,0.0001487,125.82,125.78,21.58149765]
[1766430407225,0.0001487,125.82,125.78,28.73959765]
[1766430407427,0.0001487,125.82,125.79,21.53]
[1766430408635,0.0001487,125.82,125.78,0.05149765]
[1766430408834,0.0001487,125.82,125.78,21.58149765]
[1766430410737,0.0001487,125.82,125.78,0.05149765]
[1766430412239,7.1563487,125.82,125.78,0.05149765]
[1766430415236,0.0001487,125.82,125.78,0.05149765]
[1766430416142,0.0001487,125.82,125.78,21.58149765]
[1766430416942,0.0001487,125.82,125.78,28.73939765]
[1766430417249,0.0001487,125.82,125.79,21.53]
[1766430417947,0.0001487,125.82,125.8,21.53]
[1766430419448,0.0001487,125.82,125.78,21.58149765]
[1766430420737,0.0001487,125.82,125.78,0.05149765]
[1766430423846,0.0001487,125.82,125.78,21.58149765]
[1766430424646,117.7333585,125.92,125.8,21.53]
[1766430425544,7.1517,125.9,125.82,21.53]
[1766430425751,0.05439662,125.87,125.85,0.05464834]
[1766430427642,7.1512,125.91,125.85,0.05464834]
[1766430427846,7.1512,125.91,125.85,20.77464834]
[1766430428651,0.05669908,125.89,125.85,20.77464834]
[1766430430547,0.05669908,125.89,125.85,0.05464834]
[1766430431448,7.20869908,125.89,125.85,0.05464834]
[1766430431653,0.05669908,125.89,125.85,0.05464834]
[1766430433953,7.20869908,125.89,125.85,0.05464834]
[1766430434364,0.05669908,125.89,125.85,0.00464834]
[1766430434548,0.05669908,125.89,125.78,93.86]
[1766430434753,111.2468,125.9,125.73,117.8873585]
[1766430434754,111.2796,125.86,125.76,20.72]
[1766430434968,111.2802,125.86,125.76,20.72]
[1766430435458,0.05425895,125.82,125.8,0.05462303]
[1766430435659,6.55591745,125.82,125.73,20.72]
[1766430435856,111.3102,125.83,125.71,20.72]
[1766430436158,7.1569,125.81,125.71,20.72]
[1766430436355,118.482,125.81,125.71,20.72]
[1766430436658,6.5016585,125.76,125.75,0.00090804]
[1766430436858,111.351,125.78,125.75,0.00090804]
[1766430436859,111.3508,125.78,125.75,0.00090804]
[1766430437064,111.3508,125.78,125.68,20.72]
[1766430437261,111.37,125.76,125.63,20.72]
[1766430437451,6.5016585,125.75,125.65,20.72]
[1766430437651,93.86,125.77,125.65,20.72]
[1766430437851,6.5016585,125.74,125.65,20.72]
[1766430438060,0.05847014,125.71,125.68,0.05068862]
[1766430438652,0.05847014,125.71,125.68,0.00068862]
[1766430438863,0.05847014,125.71,125.62,20.72]
[1766430439158,111.3705,125.76,125.64,20.72]
[1766430439357,118.4809,125.81,125.69,20.72]
[1766430439558,6.5016585,125.78,125.69,20.72]
[1766430439760,6.5016585,125.75,125.66,20.72]
[1766430439968,93.88,125.74,125.63,20.72]
[1766430440157,6.56022498,125.72,125.69,0.00170585]
[1766430440365,6.56022498,125.72,125.63,20.72]
[1766430440558,100.3816585,125.74,125.63,20.72]
[1766430440961,6.5016585,125.77,125.65,20.72]
[1766430441155,93.9,125.78,125.69,20.72]
[1766430441360,111.3103,125.83,125.71,20.72]
[1766430441564,117.8119585,125.83,125.71,20.72]
[1766430441870,111.3053,125.84,125.71,20.72]
[1766430441871,6.5016585,125.84,125.72,20.72]
[1766430442262,6.5016585,125.81,125.72,20.72]
[1766430442473,6.5016585,125.82,125.72,20.72]
[1766430442672,0.05223565,125.78,125.76,0.05266251]
[1766430443066,0.05223565,125.78,125.76,0.00266251]
[1766430443262,1.65223565,125.78,125.69,20.72]
[1766430443467,6.5016585,125.79,125.66,20.72]
[1766430443468,6.5016585,125.76,125.66,20.72]
[1766430443964,6.5016585,125.76,125.67,20.72]
[1766430444159,6.5016585,125.79,125.68,20.72]
[1766430444374,0.05910586,125.73,125.7,0.05240208]
[1766430444667,100.4016585,125.79,125.69,20.72]
[1766430444968,218.9006585,125.79,125.69,20.72]
[1766430445561,0.05829769,125.75,125.73,0.0031837]
[1766430445767,0.05829769,125.75,125.66,20.72]
[1766430445967,6.5016585,125.76,125.66,20.72]
[1766430446168,6.5016585,125.75,125.66,20.72]
[1766430446780,0.06036139,125.72,125.69,0.06050665]
[1766430448177,0.00036139,125.72,125.69,20.78050665]
[1766430449467,0.00036139,125.72,125.69,0.06050665]
[1766430450185,211.84571989,125.72,125.6,1.38471639]
[1766430450477,7.1625,125.71,125.61,20.37]
[1766430450864,100.4416585,125.72,125.61,20.37]
[1766430451064,13.6616585,125.75,125.65,20.42581023]
[1766430451269,6.5016585,125.75,125.65,20.37]
[1766430451467,93.94,125.77,125.65,20.37]
[1766430451671,100.4416585,125.78,125.66,20.37]
[1766430452069,0.05862547,125.73,125.71,0.06087234]
[1766430452271,0.05066951,125.73,125.71,0.06087234]
[1766430452469,0.00066951,125.73,125.71,0.06087234]
[1766430453078,0.00066951,125.73,125.71,20.43087234]
[1766430454373,0.00066951,125.73,125.71,0.06087234]
[1766430454573,0.00066951,125.73,125.65,20.37]
[1766430454775,111.3882,125.74,125.65,20.37]
[1766430455281,117.8809585,125.75,125.65,20.37]
[1766430455682,0.05492358,125.71,125.69,0.05601909]
[1766430456475,0.05492358,125.71,125.65,20.37]
[1766430457490,0.05492358,125.71,125.67,0.0591455]
[1766430458478,0.00492358,125.71,125.67,20.1691455]
[1766430459181,93.94,125.76,125.67,20.1691455]
[1766430459486,7.16,125.75,125.67,20.11]
[1766430459686,93.94,125.76,125.67,20.11]
[1766430460188,0.05142545,125.73,125.7,0.05466291]
[1766430461284,0.00142545,125.73,125.7,20.16466291]
[1766430461474,13.6601585,125.78,125.7,20.16466291]
[1766430461674,6.5016585,125.78,125.7,20.11]
[1766430462588,0.05053284,125.75,125.73,0.05256164]
[1766430463088,0.05053284,125.75,125.73,0.00256164]
[1766430463288,0.05053284,125.75,125.67,20.11]
[1766430463488,117.8545585,125.78,125.67,20.11]
[1766430464091,6.5016585,125.78,125.68,20.11]
[1766430464388,0.05780828,125.74,125.72,0.05383257]
[1766430466487,0.05780828,125.74,125.72,0.00383257]
[1766430467287,6.5016585,125.78,125.72,0.00383257]
[1766430467783,93.96,125.8,125.72,20.11383257]
[1766430467983,93.96,125.8,125.68,20.11]
[1766430468181,0.05724531,125.75,125.73,0.0533083]
[1766430468381,7.1584,125.78,125.73,0.0533083]
[1766430468581,0.05139043,125.75,125.73,0.0533083]
[1766430472486,0.05139043,125.75,125.67,27.274]
[1766430472691,117.8538585,125.78,125.68,20.11]
[1766430473394,0.05707887,125.74,125.72,0.05523477]
[1766430474894,0.05707887,125.74,125.68,20.11]
[1766430475904,0.05707887,125.74,125.7,0.05531942]
[1766430478492,0.05707887,125.74,125.66,27.2747]
[1766430478691,7.1611,125.73,125.66,27.2747]
[1766430478997,7.1611,125.73,125.67,20.11]
[1766430479495,0.05903052,125.71,125.69,0.05571814]
[1766430480287,0.05903052,125.71,125.65,20.11]
[1766430480488,0.05903052,125.71,125.62,20.11]
[1766430480688,117.41233357,125.72,125.62,20.11]
[1766430480891,129.19998208,125.76,125.63,20.11]
[1766430481093,99.96758276,125.75,125.63,20.11]
[1766430481401,0.00281695,125.7,125.68,0.05198256]
[1766430481596,7.161,125.74,125.68,0.05198256]
[1766430481987,93.96,125.75,125.68,0.05198256]
[1766430482391,7.22184238,125.73,125.68,0.05198256]
[1766430482798,0.06074238,125.73,125.68,0.05198256]
[1766430483495,0.06074238,125.73,125.68,20.16198256]
[1766430483496,0.00074238,125.73,125.68,20.16198256]
[1766430484096,111.32,125.82,125.7,20.11]
[1766430484298,6.01225709,125.81,125.7,20.11]
[1766430484491,205.2735,125.83,125.73,20.11]
[1766430484492,93.96,125.83,125.73,20.11]
[1766430484796,121.85504868,125.87,125.75,20.11]
[1766430485001,6.01388352,125.86,125.75,20.11]
[1766430485190,0.05093815,125.82,125.8,0.0587809]
[1766430485386,0.00093815,125.82,125.8,0.0587809]
[1766430485588,0.00093815,125.82,125.75,20.11]
[1766430485900,7.155,125.84,125.75,20.11]
[1766430486289,7.1555,125.83,125.75,20.11]
[1766430486488,0.05657997,125.8,125.78,0.05679316]
[1766430487102,111.2816,125.86,125.78,0.05679316]
[1766430487401,111.2816,125.86,125.75,20.11]
[1766430487402,7.1544,125.85,125.76,20.07]
[1766430488002,0.06113615,125.82,125.79,0.0533739]
[1766430488499,111.2423,125.91,125.79,20.1233739]
[1766430488500,10.57884868,125.9,125.79,20.1233739]
[1766430488700,101.1122,125.89,125.8,20.07]
[1766430489603,0.055733,125.86,125.83,0.003698]
[1766430490701,7.209733,125.86,125.83,0.003698]
[1766430490903,0.055733,125.86,125.83,0.003698]
[1766430491505,7.1517,125.9,125.83,20.073698]
[1766430491705,7.1525,125.88,125.83,0.003698]
[1766430491899,111.2636,125.88,125.78,20.07]
[1766430492504,121.83724868,125.89,125.78,20.07]
[1766430492706,111.2615,125.88,125.78,20.07]
[1766430492895,111.2717,125.87,125.78,20.07]
[1766430493100,0.05758082,125.84,125.82,5.05e-06]
[1766430493299,0.05758082,125.84,125.75,20.07]
[1766430493504,111.2924,125.85,125.75,20.07]
[1766430493705,7.1556,125.83,125.75,20.07]
[1766430494099,215.77054868,125.87,125.75,20.07]
[1766430494301,0.00050391,125.82,125.8,0.05124354]
[1766430494508,215.77054868,125.87,125.8,0.05124354]
[1766430495020,7.1545,125.85,125.8,0.05124354]
[1766430495208,0.05115291,125.84,125.8,0.05124354]
[1766430495606,0.05115291,125.84,125.75,20.07]
[1766430495804,104.49884868,125.87,125.75,20.07]
[1766430496004,93.92,125.87,125.75,20.07]
[1766430496206,101.0734,125.87,125.78,20.07]
[1766430496408,93.92,125.87,125.78,20.07]
[1766430496713,0.00262304,125.84,125.82,20.07]
[1766430497007,218.55475511,125.92,125.82,20.07]
[1766430497411,207.97590643,125.92,125.82,20.07]
[1766430497613,0.05442638,125.88,125.86,0.05201139]
[1766430500101,0.05442638,125.88,125.82,20.07]
[1766430501107,111.31922638,125.88,125.84,0.00314038]
[1766430501308,111.2648,125.88,125.79,20.07]
[1766430501509,121.83794868,125.89,125.79,20.07]
[1766430501813,111.2472,125.9,125.79,20.07]
[1766430502214,7.1532,125.87,125.79,20.07]
[1766430502525,0.00464488,125.84,125.82,0.05870439]
[1766430504008,0.00464488,125.84,125.76,20.07]
[1766430504209,121.86094868,125.86,125.76,20.07]
[1766430504411,7.1555,125.83,125.76,20.07]
[1766430505004,0.05061669,125.81,125.78,0.05089214]
[1766430506921,0.00061669,125.81,125.78,0.05089214]
[1766430507111,7.1546,125.85,125.78,0.05089214]
[1766430507310,7.1546,125.85,125.78,20.12089214]
[1766430508217,0.05019949,125.83,125.78,20.12089214]
[1766430508919,0.00019949,125.83,125.78,20.12089214]
[1766430509519,0.00019949,125.83,125.78,27.27879214]
[1766430509717,17.73114868,125.89,125.79,20.07]
[1766430510125,10.57884868,125.89,125.8,21.26]
[1766430510321,121.83524868,125.89,125.8,21.26]
[1766430510624,121.83524868,125.89,125.76,28.4191]
[1766430510625,205.1422,125.88,125.76,28.4191]
[1766430510923,7.1538,125.86,125.81,0.05718173]
[1766430511123,7.1538,125.86,125.79,21.26]
[1766430511321,7.1531,125.87,125.79,21.26]
[1766430511515,104.45884868,125.89,125.79,21.26]
[1766430511917,0.05890302,125.85,125.83,0.0582923]
[1766430512711,0.05890302,125.85,125.79,21.26]
[1766430512923,7.1548,125.84,125.76,21.26]
[1766430513218,121.86284868,125.86,125.76,21.26]
[1766430513617,0.05435397,125.82,125.8,0.0549046]
[1766430513818,0.05435397,125.82,125.74,93.88]
[1766430514018,10.57884868,125.83,125.74,21.26]
[1766430514218,7.1562,125.82,125.74,21.26]
[1766430514519,111.324,125.81,125.72,21.26]
[1766430514726,0.05960355,125.78,125.75,0.05119962]
[1766430515930,10.57884868,125.83,125.75,0.05119962]
[1766430516127,10.57884868,125.83,125.74,20.66]
[1766430516526,7.1559,125.82,125.74,20.66]
[1766430516925,0.05460191,125.79,125.77,0.0508877]
[1766430517327,7.1559,125.82,125.77,0.0508877]
[1766430517720,7.1552,125.84,125.77,20.7108877]
[1766430517919,111.2801,125.86,125.78,20.66]
[1766430518424,0.05877427,125.83,125.81,0.05415448]
[1766430520018,111.2682,125.88,125.81,0.05415448]
[1766430520836,7.1543,125.85,125.81,0.05415448]
[1766430521030,0.00119023,125.84,125.81,0.05415448]
[1766430521631,0.00119023,125.84,125.81,20.71415448]
[1766430521834,7.152,125.89,125.81,22.29415448]
[1766430522026,7.152,125.89,125.82,93.9]
[1766430522336,111.2335,125.92,125.83,20.66]
[1766430522637,10.57884868,125.94,125.83,20.66]
[1766430522638,7.1508,125.91,125.83,20.66]
[1766430522837,0.00011577,125.88,125.86,0.05437441]
[1766430523136,10.57884868,125.94,125.83,20.66]
[1766430523931,0.05451292,125.9,125.87,0.05704337]
[1766430527133,0.05451292,125.9,125.84,93.88]
[1766430527333,111.2207,125.93,125.84,93.88]
[1766430528148,0.05717544,125.9,125.87,0.05788327]
[1766430528327,7.20857544,125.9,125.84,93.88]
[1766430528939,7.20857544,125.9,125.82,20.66]
[1766430529139,7.1514,125.9,125.82,20.66]
[1766430529347,0.05694751,125.87,125.85,0.05344664]
[1766430529534,111.2207,125.93,125.84,20.66]
[1766430529948,121.79074868,125.94,125.84,20.66]
[1766430530539,0.05128239,125.9,125.88,0.05406795]
[1766430530750,0.05128239,125.9,125.88,0.00406795]
[1766430531651,7.20288239,125.9,125.88,0.00406795]
[1766430531942,0.05128239,125.9,125.88,0.00406795]
[1766430536840,0.00128239,125.9,125.88,0.00406795]
[1766430537043,0.00128239,125.9,125.88,20.66406795]